bitfinex/quotes_ETHUSD_20241207
["timestamp","ask_amount","ask_price","bid_price","bid_amount"]
[1733584119544,0.13415561,4002.5,4002.4,1.74895]
[1733584119865,1.04724511,4002.9,4002.4,1.74895]
[1733584120165,1.84524511,4003.0,4002.7,1.74877]
[1733584120368,0.13415561,4002.8,4002.4,1.74895]
[1733584120518,0.798,4003.0,4002.8,1.74875]
[1733584120834,0.9994131,4002.9,4002.8,1.74875]
[1733584121616,0.13415561,4002.9,4002.8,1.74875]
[1733584121867,0.99937659,4002.9,4002.5,1.74888]
[1733584122147,0.13415561,4002.9,4002.6,1.74885]
[1733584122506,0.86522813,4002.8,4002.7,1.74881]
[1733584122718,1.84524511,4003.0,4002.7,1.74881]
[1733584122934,0.99935806,4002.9,4002.7,1.74881]
[1733584123160,0.13415561,4002.9,4002.7,1.74881]
[1733584123373,0.13415561,4002.9,4002.7,1.7488]
[1733584123663,0.13415561,4002.9,4002.2,1.07859784]
[1733584123664,0.13415561,4002.9,4002.6,1.74886]
[1733584124041,0.86522161,4002.8,4002.6,1.74886]
[1733584124243,0.13415561,4002.9,4002.7,1.74881]
[1733584124441,0.798,4003.0,4002.7,1.74881]
[1733584124768,0.86517325,4002.9,4002.7,1.74881]
[1733584124929,0.13415561,4002.9,4002.7,1.74881]
[1733584128677,0.13415561,4002.9,4002.8,2.82736784]
[1733584129028,0.13415561,4002.9,4002.8,3.51736784]
[1733584129231,1.04724511,4003.7,4003.4,1.74851]
[1733584129434,2.16230152,4003.6,4003.4,1.74851]
[1733584129637,0.86492061,4003.5,4003.4,1.74851]
[1733584129868,0.86492464,4003.5,4003.4,1.74851]
[1733584130372,1.04724511,4003.8,4003.4,1.74851]
[1733584130670,3.20916544,4003.7,4003.2,1.7486]
[1733584130842,2.16192033,4003.6,4003.2,1.7486]
[1733584131038,0.86476813,4003.5,4003.2,1.7486]
[1733584131232,1.04724511,4003.7,4003.2,1.7486]
[1733584131568,2.1617369,4003.6,4003.2,1.7486]
[1733584131869,0.86469476,4003.5,4003.2,1.7486]
[1733584132144,1.04724511,4003.7,4003.2,1.7486]
[1733584132278,2.16175018,4003.6,4003.2,1.7486]
[1733584132430,1.04724511,4003.7,4003.2,1.7486]
[1733584132769,0.86460463,4003.6,4003.2,1.7486]
[1733584132980,0.13505892,4003.6,4003.2,1.7486]
[1733584134626,0.13505892,4003.6,4002.8,1.76859784]
[1733584134830,0.13505892,4003.6,4003.1,1.74864]
[1733584136131,0.13505892,4003.6,4002.9,1.74873]
[1733584136573,0.13505892,4003.6,4002.5,0.69]
[1733584136574,0.8306,4003.4,4002.5,0.69]
[1733584136758,1.41436386,4003.3,4002.6,1.74881]
[1733584136934,0.68505892,4003.3,4002.6,1.74881]
[1733584137271,0.68505892,4003.3,4002.7,1.07859784]
[1733584139492,0.68505892,4003.3,4002.7,2.82737784]
[1733584139664,0.68505892,4003.3,4002.7,1.07859784]
[1733584140752,1.98147475,4003.3,4002.7,1.07859784]
[1733584141093,0.68505892,4003.3,4002.7,2.82740784]
[1733584141474,1.98142181,4003.3,4002.7,2.82740784]
[1733584141895,0.68505892,4003.3,4002.7,2.82740784]
[1733584142352,1.98145211,4003.3,4002.7,2.82740784]
[1733584142554,0.68505892,4003.3,4002.7,2.82740784]
[1733584144961,0.68505892,4003.3,4002.7,1.07859784]
[1733584145162,0.2562904,4003.2,4002.5,1.7489]
[1733584145369,0.8253,4003.1,4002.4,1.74893]
[1733584145751,0.99947993,4003.0,4002.4,1.74893]
[1733584145979,0.55,4002.6,4001.5,0.69]
[1733584146196,0.55,4002.6,4001.6,1.07859784]
[1733584146402,0.55,4002.6,4001.8,1.74919]
[1733584146403,0.13504472,4002.5,4001.8,1.74919]
[1733584146554,0.13504472,4002.5,4001.9,1.74916]
[1733584146954,0.13504472,4002.5,4002.0,1.74911]
[1733584148203,0.13504472,4002.5,4001.7,1.74921]
[1733584148496,0.97633447,4002.4,4001.6,1.07859784]
[1733584148695,0.8253,4002.4,4001.6,1.07859784]
[1733584149014,0.13464275,4002.3,4001.9,1.74915]
[1733584149965,0.13464275,4002.3,4001.6,2.82785784]
[1733584150172,0.13464275,4002.3,4001.7,1.74924]
[1733584150701,0.13464275,4002.3,4001.8,1.7492]
[1733584151411,0.39036154,4002.3,4001.8,1.7492]
[1733584151974,0.13464275,4002.3,4002.0,1.74912]
[1733584152191,0.13464275,4002.3,4001.8,1.07859784]
[1733584152867,0.13464275,4002.3,4001.9,1.74916]
[1733584154682,0.13464275,4002.3,4001.8,1.07859784]
[1733584154724,0.13464275,4002.3,4002.0,1.74908]
[1733584157029,0.13464275,4002.3,4001.5,1.07859784]
[1733584157240,0.8253,4002.2,4001.7,1.74924]
[1733584157528,0.8253,4002.2,4001.8,1.7492]
[1733584157742,0.1341462,4002.1,4001.8,1.7492]
[1733584157912,0.8253,4002.0,4001.6,1.74928]
[1733584158431,0.8253,4002.0,4001.7,1.74922]
[1733584158432,0.1341462,4001.9,4001.7,1.74922]
[1733584158729,0.1341462,4001.9,4001.7,2.10100178]
[1733584159289,0.1341462,4001.9,4001.8,2.82780784]
[1733584160043,0.8253,4002.0,4001.8,2.82780784]
[1733584160199,0.1341462,4001.9,4001.8,2.82780784]
[1733584160721,0.1341462,4001.9,4001.8,1.74921]
[1733584162521,0.1341462,4001.9,4001.8,2.06716896]
[1733584163236,0.1341462,4001.9,4001.8,3.1457668]
[1733584163608,0.7545,4002.4,4002.0,1.7491]
[1733584163935,0.7545,4002.4,4002.3,1.74899]
[1733584164105,0.7545,4002.8,4002.3,1.74899]
[1733584164299,0.86493099,4002.7,4002.3,1.74899]
[1733584164502,0.7545,4002.8,4002.3,1.74899]
[1733584164809,0.86492052,4002.7,4002.3,1.74899]
[1733584165008,1.04724511,4003.0,4002.4,1.07859784]
[1733584165206,0.86489144,4002.9,4002.4,1.07859784]
[1733584165419,0.7545,4003.0,4002.4,1.07859784]
[1733584165635,0.86490958,4002.9,4002.6,1.74884]
[1733584165838,0.7545,4003.0,4002.6,1.74884]
[1733584166041,0.86491359,4002.9,4002.6,1.74884]
[1733584166254,0.7545,4003.0,4002.6,1.74884]
[1733584166399,0.86488282,4002.9,4002.7,1.74881]
[1733584166600,0.7545,4003.0,4002.7,1.74881]
[1733584166830,0.86491129,4002.9,4002.7,1.74881]
[1733584167004,0.7545,4003.0,4002.7,1.74881]
[1733584167203,0.86491175,4002.9,4002.7,1.74881]
[1733584167530,0.7545,4003.0,4002.1,1.28975215]
[1733584167708,0.86491286,4002.9,4002.3,1.74896]
[1733584168040,1.80174511,4003.0,4002.3,1.74896]
[1733584168239,0.86491652,4002.9,4002.3,1.74896]
[1733584168445,1.80174511,4003.0,4002.3,1.74896]
[1733584168736,0.86491834,4002.9,4002.3,1.74896]
[1733584168942,1.80174511,4003.0,4002.3,1.74896]
[1733584169142,0.86491842,4002.9,4002.4,1.74894]
[1733584169326,1.80174511,4003.0,4002.4,1.74894]
[1733584169504,0.86488884,4002.9,4002.0,0.69]
[1733584169707,0.86492226,4002.8,4002.3,1.74899]
[1733584169950,2.13899798,4003.0,4002.3,1.74899]
[1733584170107,2.16231757,4002.9,4002.3,1.74899]
[1733584170307,1.80174511,4003.0,4002.3,1.74899]
[1733584170520,2.16223881,4002.9,4002.3,1.74899]
[1733584170722,1.80174511,4003.0,4002.3,1.74899]
[1733584170723,0.86489552,4002.8,4002.3,1.74899]
[1733584171060,1.80174511,4003.0,4002.3,1.74899]
[1733584171212,2.16232406,4002.9,4002.3,1.74899]
[1733584171418,2.13899798,4003.0,4002.3,1.74899]
[1733584171640,2.1622531,4002.9,4002.3,1.74899]
[1733584171830,0.86490124,4002.8,4002.3,1.74899]
[1733584172012,2.13899798,4003.0,4002.3,1.74899]
[1733584172211,2.53331336,4002.9,4002.0,1.74908]
[1733584172555,0.8105,4002.7,4001.9,1.74916]
[1733584172737,0.8649575,4002.6,4001.9,1.74916]
[1733584173067,0.8649575,4002.6,4001.6,1.74925]
[1733584173068,0.86501457,4002.5,4001.6,1.74925]
[1733584173255,0.8105,4002.3,4001.4,1.74938]
[1733584173455,0.8105,4002.1,4001.2,1.74947]
[1733584173848,0.8105,4002.1,4001.3,1.74941]
[1733584174153,0.86501415,4002.0,4001.3,1.74941]
[1733584174365,0.8105,4002.1,4001.4,1.74938]
[1733584174653,0.8105,4002.1,4001.2,1.07859784]
[1733584174853,0.8105,4002.1,4001.5,1.74934]
[1733584176046,1.85774511,4002.4,4001.8,1.74917]
[1733584176352,2.16208445,4002.3,4001.8,1.74917]
[1733584176532,0.86490545,4002.2,4001.8,1.74917]
[1733584176843,1.29732922,4002.3,4001.8,1.74917]
[1733584177044,0.86488255,4002.2,4001.8,1.74917]
[1733584177253,1.85774511,4002.4,4001.8,1.74918]
[1733584177451,2.16236022,4002.3,4001.8,1.74919]
[1733584177831,0.13174411,4002.3,4001.8,1.74919]
[1733584177951,0.86492437,4002.2,4001.8,1.74919]
[1733584178152,0.13174411,4002.3,4001.8,1.74919]
[1733584178327,0.86500367,4002.2,4001.8,1.74919]
[1733584178523,0.13174411,4002.2,4001.5,2.72209378]
[1733584178735,0.13174411,4002.2,4001.8,0.27219838]
[1733584178931,1.85774511,4002.4,4001.8,0.27219838]
[1733584179140,0.13177727,4002.1,4001.8,0.27219838]
[1733584179356,1.85774511,4002.4,4002.0,1.74908]
[1733584179524,1.04724511,4002.5,4002.0,1.7491]
[1733584179731,0.86502521,4002.4,4002.1,1.74908]
[1733584179957,1.04724511,4002.6,4002.1,1.74908]
[1733584180115,0.86499494,4002.5,4002.1,1.74908]
[1733584180321,0.86508839,4002.4,4002.1,1.74908]
[1733584180558,1.04724511,4002.5,4002.1,1.74908]
[1733584180755,0.86510781,4002.4,4002.1,1.74908]
[1733584180933,1.04724511,4002.6,4002.3,1.74899]
[1733584181134,0.86508485,4002.5,4002.3,1.74899]
[1733584181429,1.04724511,4002.6,4002.3,1.74899]
[1733584181622,0.86518088,4002.5,4002.3,1.74899]
[1733584181819,1.04724511,4002.6,4002.3,1.74899]
[1733584182130,0.86520668,4002.5,4002.3,1.74899]
[1733584182450,1.04724511,4002.6,4002.3,1.74899]
[1733584182669,2.16336853,4002.5,4002.3,1.74899]
[1733584182817,0.86534741,4002.4,4002.3,1.74899]
[1733584183018,1.04724511,4002.9,4002.3,0.243899]
[1733584183366,0.8652824,4002.8,4002.3,0.243899]
[1733584183566,1.04724511,4003.0,4002.3,0.243899]
[1733584183741,0.86529743,4002.9,4002.3,0.243899]
[1733584184052,1.04724511,4003.0,4002.4,0.30715068]
[1733584184355,0.86529685,4002.9,4002.8,1.74877]
[1733584185632,0.86529685,4002.9,4002.5,3.51748784]
[1733584185827,1.57078357,4003.2,4002.5,3.51748784]
[1733584185828,1.04724511,4003.0,4002.5,3.51748784]
[1733584186053,2.16361322,4002.9,4002.5,3.51748784]
[1733584186228,1.04724511,4003.0,4002.5,3.92434159]
[1733584186438,0.7992,4002.8,4001.8,1.7492]
[1733584186768,1.04724511,4002.6,4001.6,2.4393]
[1733584187060,1.84644511,4002.4,4001.7,1.07859784]
[1733584187219,3.21094084,4002.3,4001.7,1.07859784]
[1733584187417,3.21094084,4002.3,4001.7,1.45867]
[1733584187418,0.86546607,4002.2,4001.7,1.45867]
[1733584187632,1.04724511,4002.3,4001.7,1.45867]
[1733584187834,0.86562118,4002.2,4001.7,1.45867]
[1733584188047,1.04724511,4002.3,4001.7,1.45867]
[1733584188243,0.86567015,4002.2,4001.6,0.69]
[1733584188450,1.04724511,4002.3,4001.6,0.69]
[1733584188621,2.16433943,4002.2,4001.6,0.69]
[1733584188821,1.04724511,4002.3,4001.6,0.69]
[1733584189057,2.16435591,4002.2,4001.6,0.69]
[1733584189277,1.04724511,4002.3,4001.6,0.69]
[1733584189444,0.86574185,4002.2,4001.6,0.69]
[1733584189761,0.86574185,4002.2,4001.3,1.74939]
[1733584189762,3.21188606,4002.1,4001.3,0.69]
[1733584189919,4.01108606,4002.0,4001.3,0.69]
[1733584190121,2.16464095,4001.9,4001.1,1.07859784]
[1733584190326,2.16470113,4001.8,4001.0,0.69]
[1733584190534,4.01114624,4001.7,4000.8,1.74963]
[1733584190718,4.01114624,4001.7,4001.0,1.07859784]
[1733584190719,2.16470113,4001.6,4001.0,1.07859784]
[1733584190968,0.86585638,4001.5,4000.9,1.7496]
[1733584191122,1.84644511,4001.7,4000.9,1.7496]
[1733584191339,2.16484688,4001.6,4000.9,1.7496]
[1733584191529,0.86593875,4001.5,4001.0,0.02499101]
[1733584191723,1.84644511,4001.7,4000.9,1.7496]
[1733584192026,2.16456242,4001.6,4000.8,0.243963]
[1733584192365,1.84644511,4001.7,4001.0,2.82814784]
[1733584192562,0.7992,4001.7,4001.0,1.74955]
[1733584192730,0.99283585,4001.6,4001.0,1.74955]
[1733584192919,0.12712169,4001.6,4001.0,1.74955]
[1733584193663,0.12712169,4001.6,4001.3,1.74941]
[1733584193873,1.04724511,4002.0,4001.4,0.243941]
[1733584194024,0.86556407,4001.9,4001.4,0.243941]
[1733584194226,1.84644511,4002.1,4001.4,0.243941]
[1733584194526,2.16387233,4002.0,4001.4,0.243941]
[1733584194850,0.86554893,4001.9,4001.4,0.243941]
[1733584195054,1.04724511,4002.0,4001.4,0.243941]
[1733584195229,0.12712169,4001.8,4001.4,0.243941]
[1733584195629,1.84644511,4002.1,4001.4,0.243941]
[1733584195864,3.33805028,4002.0,4001.4,0.243941]
[1733584196167,0.86547339,4001.9,4001.4,0.243941]
[1733584196474,1.04724511,4002.0,4001.4,0.243941]
[1733584196766,0.12712169,4001.8,4001.4,0.243941]
[1733584196938,1.84644511,4002.1,4001.4,0.243941]
[1733584197145,0.12712169,4001.7,4001.3,1.74941]
[1733584197357,1.84644511,4002.1,4001.3,1.74941]
[1733584197537,0.12712169,4001.6,4001.3,1.74941]
[1733584197783,1.84644511,4002.1,4001.3,1.74941]
[1733584197962,0.12674189,4001.5,4001.3,1.74941]
[1733584198282,1.84644511,4002.1,4001.4,0.243941]
[1733584198482,2.16352352,4002.0,4001.3,1.74941]
[1733584198645,0.86540941,4001.9,4001.3,1.74941]
[1733584198962,1.84644511,4002.1,4001.3,1.74941]
[1733584199167,2.16342463,4002.0,4001.3,1.74941]
[1733584199344,0.86536985,4001.9,4001.3,1.74941]
[1733584199546,1.84644511,4002.1,4001.4,0.243941]
[1733584199741,2.16333395,4002.0,4001.4,0.243941]
[1733584199970,0.86533358,4001.9,4001.4,0.243941]
[1733584200153,1.84644511,4002.1,4001.4,0.243941]
[1733584200462,2.16333343,4002.0,4001.4,0.243941]
[1733584200790,0.86533337,4001.9,4001.4,0.243941]
[1733584201002,1.57078357,4002.3,4001.2,0.69]
[1733584201003,1.04724511,4002.2,4001.7,1.74923]
[1733584201292,1.04724511,4002.4,4001.7,1.74923]
[1733584201445,0.86522988,4002.3,4001.7,1.74923]
[1733584201646,1.04724511,4002.4,4001.8,0.174923]
[1733584201869,0.86520693,4002.3,4001.8,1.924133]
[1733584202078,1.81594511,4002.5,4001.8,2.614133]
[1733584202287,2.1630818,4002.4,4001.8,2.614133]
[1733584202585,0.86523272,4002.3,4001.8,2.614133]
[1733584202767,1.81594511,4002.5,4001.9,0.2614133]
[1733584202969,2.16302115,4002.4,4001.8,2.43921]
[1733584203193,0.86520846,4002.3,4001.8,2.43921]
[1733584203364,1.81594511,4002.5,4001.8,2.43921]
[1733584203545,2.16308813,4002.4,4001.8,2.43921]
[1733584203868,0.86523525,4002.3,4001.8,2.43921]
[1733584204073,1.81594511,4002.5,4001.9,0.243921]
[1733584204240,2.16309268,4002.4,4001.9,0.243921]
[1733584204450,0.86523707,4002.3,4001.9,0.243921]
[1733584204690,1.81594511,4002.5,4001.9,0.243921]
[1733584204859,2.1630232,4002.4,4001.9,0.243921]
[1733584205067,1.57078357,4002.6,4001.9,0.243921]
[1733584205068,1.04724511,4002.7,4001.9,1.993081]
[1733584205354,1.86004511,4002.8,4002.0,0.2683081]
[1733584205559,2.16305427,4002.7,4002.0,0.2683081]
[1733584205814,1.86004511,4002.8,4002.0,0.2683081]
[1733584206089,0.86519533,4002.7,4002.0,0.2683081]
[1733584206295,1.86004511,4002.8,4002.0,0.2683081]
[1733584206495,2.1630144,4002.7,4002.0,0.2683081]
[1733584206695,1.86004511,4002.8,4002.0,0.2683081]
[1733584206992,2.1629431,4002.7,4001.9,1.74916]
[1733584207165,1.86004511,4002.8,4001.9,1.74916]
[1733584207361,0.86518922,4002.7,4001.9,1.74916]
[1733584207561,1.86004511,4002.8,4001.9,1.74916]
[1733584207800,0.12674189,4002.6,4001.9,1.74916]
[1733584208090,1.04724511,4002.8,4002.0,0.69]
[1733584208256,0.12674189,4002.5,4002.1,1.74907]
[1733584208450,1.04724511,4002.9,4002.1,1.74907]
[1733584208657,0.8128,4002.9,4002.1,1.74907]
[1733584208956,0.99182017,4002.8,4002.2,1.74902]
[1733584209151,0.99182017,4002.8,4002.0,0.69]
[1733584209152,0.12674189,4002.8,4002.0,0.69]
[1733584209355,0.12674189,4002.8,4002.1,0.30528078]
[1733584209566,1.04724511,4003.1,4002.2,0.69]
[1733584209768,0.12674189,4002.7,4002.4,1.74891]
[1733584209982,1.86004511,4003.2,4002.4,1.74891]
[1733584210213,0.12674189,4002.6,4002.4,1.74891]
[1733584210411,1.04724511,4003.1,4002.4,1.74891]
[1733584210564,0.12674189,4002.5,4002.4,1.74891]
[1733584210768,1.86004511,4003.2,4002.4,1.74891]
[1733584211065,2.16245625,4003.1,4002.4,1.74891]
[1733584211371,0.55,4002.9,4002.4,1.74895]
[1733584211695,0.55,4003.2,4002.6,1.74885]
[1733584211906,0.12674189,4002.8,4002.6,1.74885]
[1733584212075,0.55,4002.7,4002.4,1.74895]
[1733584212407,0.34308287,4003.3,4002.4,1.74895]
[1733584212408,0.55,4003.1,4002.4,1.74895]
[1733584212707,0.12674189,4003.0,4002.4,1.74895]
[1733584212909,0.55,4002.9,4002.4,1.74895]
[1733584213115,0.6774873,4002.9,4002.3,0.69]
[1733584213318,0.6774873,4002.9,4002.3,2.43899]
[1733584214723,0.6774873,4002.9,4002.3,3.51739143]
[1733584215819,1.4721873,4002.9,4002.3,3.51739143]
[1733584216332,1.85384174,4002.9,4001.8,1.76840143]
[1733584216512,1.59724511,4002.7,4001.8,1.07840143]
[1733584216681,0.55,4002.4,4001.8,1.07840143]
[1733584217139,0.55,4002.2,4001.8,1.07840143]
[1733584217685,0.12729266,4002.1,4001.8,1.07840143]
[1733584218329,0.55,4002.4,4001.8,1.07840143]
[1733584218482,0.12729266,4002.0,4001.5,1.76840143]
[1733584218688,0.55,4002.4,4001.5,1.76840143]
[1733584218902,0.12729266,4001.9,4001.5,1.76840143]
[1733584219125,0.7947,4002.0,4001.5,1.07840143]
[1733584219286,0.12725468,4001.8,4001.5,1.07840143]
[1733584219485,0.55,4001.9,4001.5,1.07840143]
[1733584219711,0.55,4001.9,4000.9,1.06622408]
[1733584219972,0.12725468,4001.8,4000.9,2.14462551]
[1733584220094,0.55,4001.7,4001.0,0.21446255]
[1733584220686,0.55,4001.5,4001.1,1.74951]
[1733584221135,0.55,4001.9,4001.1,1.74951]
[1733584221312,0.12714072,4001.4,4001.0,0.21446255]
[1733584221522,0.55,4001.9,4000.9,3.51800143]
[1733584221830,0.12714072,4001.3,4000.9,3.88256082]
[1733584221990,1.59724511,4001.9,4001.1,1.07840143]
[1733584222335,2.16269515,4001.8,4001.1,1.07840143]
[1733584222631,0.55,4001.9,4001.0,1.74955]
[1733584222925,0.55,4001.6,4000.9,2.80413939]
[1733584223119,0.55,4001.7,4001.0,2.02997394]
[1733584223512,0.55,4001.5,4001.0,2.02997394]
[1733584224028,0.55,4001.9,4001.0,2.02997394]
[1733584224571,0.55,4001.7,4001.1,1.77448997]
[1733584225036,0.7947,4002.0,4001.1,1.7495]
[1733584225037,0.55,4001.9,4001.1,1.7495]
[1733584225241,0.55,4001.5,4001.1,1.77448996]
[1733584225526,0.55,4001.5,4001.2,0.31094633]
[1733584225527,0.12714072,4001.4,4001.2,0.31094633]
[1733584226655,0.55,4001.2,4000.5,0.69]
[1733584226865,0.55,4001.0,4000.1,0.69]
[1733584227145,0.55,4000.8,4000.1,0.69]
[1733584227292,0.55,4000.8,4000.1,3.02799711]
[1733584227495,0.55,4001.0,4000.3,1.74986]
[1733584227689,0.12652819,4000.7,4000.2,0.30279971]
[1733584227940,0.55,4000.6,4000.2,0.30279971]
[1733584228232,0.8171,4001.1,4000.2,0.30279971]
[1733584228233,0.55,4001.0,4000.5,1.74977]
[1733584228491,0.12631444,4000.9,4000.5,1.74977]
[1733584228653,0.12631444,4000.9,4000.6,0.174977]
[1733584229165,0.12631444,4000.9,4000.6,1.924707]
[1733584231561,0.55,4001.0,4000.6,1.924707]
[1733584231728,0.12635245,4000.8,4000.6,1.924707]
[1733584231928,0.55,4001.0,4000.6,1.924707]
[1733584232448,0.15206294,4000.9,4000.7,0.1924707]
[1733584232623,0.55,4001.0,4000.7,0.1924707]
[1733584233228,0.15205344,4000.9,4000.7,0.1924707]
[1733584233364,0.15205344,4000.9,4000.8,0.02499245]
[1733584233537,1.3671,4000.8,4000.1,1.74994]
[1733584234232,0.55,4000.6,4000.2,1.74991]
[1733584234632,0.15204393,4000.5,4000.2,1.74991]
[1733584235764,0.15204393,4000.5,4000.1,2.33799711]
[1733584235971,0.15204393,4000.5,4000.2,2.06542029]
[1733584236177,0.55,4000.7,4000.2,2.06542029]
[1733584238255,0.55,4000.7,4000.0,1.74999]
[1733584238582,0.15164966,4000.6,4000.0,1.74999]
[1733584238872,0.55,4000.7,4000.0,1.74999]
[1733584239174,0.15164966,4000.6,4000.0,1.74999]
[1733584239705,0.55,4000.7,4000.0,1.74999]
[1733584239984,0.15164966,4000.6,4000.1,0.243999]
[1733584240276,0.55,4000.7,4000.1,1.993939]
[1733584240484,0.15164966,4000.6,4000.2,1.7499]
[1733584240668,0.55,4000.7,4000.2,1.7499]
[1733584242077,0.55,4000.7,4000.3,1.74986]
[1733584242277,0.55,4000.7,4000.3,2.18304561]
[1733584243789,1.04724511,4001.7,4000.3,2.18304561]
[1733584243790,0.8087,4001.2,4000.5,0.69]
[1733584243951,0.8087,4001.6,4000.5,0.69]
[1733584244158,0.15156889,4001.1,4000.5,0.69]
[1733584244354,0.8087,4001.6,4000.9,1.7496]
[1733584244667,0.15156889,4001.5,4000.9,1.7496]
[1733584244895,0.15156889,4001.5,4000.9,1.92456]
[1733584245379,0.55,4001.4,4000.9,1.92456]
[1733584245868,0.15179692,4001.3,4000.9,1.92456]
[1733584246473,0.15179692,4001.3,4001.0,1.74955]
[1733584246801,0.55,4001.5,4001.1,1.74951]
[1733584247135,0.15196319,4001.4,4001.2,1.941877]
[1733584247581,0.55,4001.7,4001.2,1.941877]
[1733584247766,0.15196319,4001.3,4001.2,1.941877]
[1733584247953,0.55,4001.7,4001.2,1.941877]
[1733584250753,0.55,4001.7,4001.2,0.192447]
[1733584250981,0.55,4001.7,4001.0,1.74955]
[1733584251175,0.15196319,4001.6,4001.0,1.74955]
[1733584251490,0.55,4001.7,4001.0,1.74955]
[1733584251679,0.15196319,4001.6,4001.0,1.74955]
[1733584251875,0.55,4001.7,4001.0,1.74955]
[1733584252187,0.55,4001.7,4001.1,0.47775471]
[1733584252188,0.15196319,4001.6,4001.1,0.47775471]
[1733584252405,0.15196319,4001.6,4001.3,1.74938]
[1733584252606,3.31967357,4002.6,4001.5,0.69]
[1733584252607,0.8087,4002.2,4001.5,0.69]
[1733584252798,0.8087,4002.5,4001.6,0.02498695]
[1733584252989,0.15196319,4002.1,4001.9,1.74914]
[1733584253187,0.8087,4002.5,4001.9,1.924054]
[1733584253415,0.15196319,4002.0,4001.9,1.924054]
[1733584253589,0.8087,4002.5,4002.0,1.74911]
[1733584253976,0.15196319,4002.4,4002.0,1.74911]
[1733584254178,0.14368526,4002.4,4002.0,1.74911]
[1733584254379,0.55,4002.4,4002.0,1.74911]
[1733584254822,0.15168726,4002.3,4002.0,1.74911]
[1733584254986,0.15168726,4002.3,4001.7,1.74922]
[1733584255186,0.15168726,4002.3,4001.7,2.22694171]
[1733584257396,0.15168726,4002.3,4001.7,0.47772171]
[1733584257593,0.15168726,4002.3,4001.4,2.46447257]
[1733584257594,0.8087,4002.1,4001.5,1.74931]
[1733584257997,0.15270824,4002.0,4001.5,1.74931]
[1733584258812,0.15270824,4002.0,4001.3,1.74943]
[1733584259352,0.55,4001.9,4001.1,2.22726471]
[1733584259584,0.55,4001.7,4000.9,1.74958]
[1733584259897,0.15259904,4001.6,4000.9,1.74958]
[1733584260236,0.55,4001.7,4000.7,1.74969]
[1733584260535,0.55,4001.7,4000.6,2.33799711]
[1733584260536,0.55,4001.5,4000.8,1.74964]
[1733584261339,0.8087,4001.6,4000.6,2.33799711]
[1733584261340,0.55,4001.3,4000.6,4.08772711]
[1733584261625,0.55,4001.3,4000.7,2.2398607]
[1733584261834,0.55,4001.5,4000.7,2.2398607]
[1733584262035,0.15249458,4001.2,4000.7,1.74968]
[1733584262190,0.55,4001.5,4000.7,1.74968]
[1733584262394,0.15249458,4001.1,4000.7,1.74968]
[1733584262664,0.55,4001.5,4000.7,1.74968]
[1733584262804,0.15249458,4001.0,4000.7,1.74968]
[1733584262993,0.55,4001.5,4000.7,2.0059983]
[1733584263196,0.55,4001.5,4000.7,1.74968]
[1733584263197,0.15249458,4000.9,4000.7,1.74968]
[1733584263418,0.55,4001.5,4000.7,1.74968]
[1733584263622,0.15249458,4000.8,4000.2,0.69]
[1733584263810,0.55,4000.9,4000.1,1.74994]
[1733584264007,0.15249458,4000.7,4000.1,1.74994]
[1733584264240,0.55,4000.9,4000.1,1.74994]
[1733584264404,0.7586,4000.5,3999.9,0.69]
[1733584264737,0.15169202,4000.4,3999.9,0.69]
[1733584264944,0.15169202,4000.4,3999.6,1.75017]
[1733584265301,0.55,4000.3,3999.4,0.12776438]
[1733584265498,0.14648361,4000.2,3999.3,1.75027]
[1733584265705,2.09437809,4001.1,3999.3,1.75027]
[1733584265706,2.34437661,4000.7,3999.4,0.244027]
[1733584265944,3.35563969,4000.6,3999.4,0.244027]
[1733584266151,0.86477947,4000.5,3999.4,0.244027]
[1733584266456,1.29713426,4000.6,3999.4,0.244027]
[1733584266742,0.14648361,4000.4,3999.4,0.244027]
[1733584266833,1.04724511,4000.6,3999.2,0.69]
[1733584267026,1.89635361,4000.3,3999.1,1.75039]
[1733584267260,1.29691452,4000.4,3999.1,1.75039]
[1733584267462,0.14648361,4000.2,3999.1,1.75039]
[1733584267647,1.04724511,4000.5,3999.1,1.75039]
[1733584267818,0.14648361,4000.1,3999.2,0.40883871]
[1733584268022,2.34382343,4000.3,3999.2,0.40883871]
[1733584268253,0.14648361,4000.0,3999.2,0.40883871]
[1733584268462,0.7586,4000.2,3999.2,2.15917871]
[1733584268620,0.14648361,3999.9,3999.2,0.40883871]
[1733584268821,0.7586,4000.2,3999.6,1.75016]
[1733584269052,0.14596565,3999.8,3999.6,1.75016]
[1733584269261,0.7586,4000.2,3999.6,1.75016]
[1733584269766,0.7586,4000.2,3999.6,1.77515995]
[1733584270059,0.14596565,4000.1,3999.6,1.75016]
[1733584270261,0.14596565,4000.1,3999.7,2.24151571]
[1733584270462,0.7586,4000.6,3999.7,2.24151571]
[1733584270619,0.7586,4000.6,3999.7,0.49139571]
[1733584270825,0.14596565,4000.5,3999.7,0.49139571]
[1733584271359,0.14596565,4000.5,3999.5,0.8258]
[1733584272023,0.14596565,4000.5,3999.5,2.57601]
[1733584272330,0.14596565,4000.5,3999.6,1.77516997]
[1733584272531,0.14596565,4000.5,3999.5,0.8258]
[1733584272776,0.14596565,4000.5,3999.7,1.7501]
[1733584272935,0.14596565,4000.5,3999.8,2.00766]
[1733584273861,0.14596565,4000.5,4000.0,1.74999]
[1733584274266,0.14596565,4000.5,4000.1,1.74995]
[1733584274652,0.7586,4000.9,4000.1,1.74995]
[1733584274857,0.1456236,4000.4,4000.1,1.74995]
[1733584275168,0.7586,4000.9,4000.2,0.174995]
[1733584275465,0.7586,4000.9,4000.2,1.924885]
[1733584275466,0.1456236,4000.3,4000.2,1.924885]
[1733584275686,0.7586,4001.2,4000.2,2.51299211]
[1733584275836,1.80584511,4001.5,4000.8,1.74964]
[1733584276039,0.14570914,4001.1,4000.8,1.74964]
[1733584276368,0.14570914,4001.0,4000.9,0.174964]
[1733584276576,0.7586,4001.5,4000.9,1.74956]
[1733584276870,0.14570914,4001.0,4000.9,1.74956]
[1733584277033,0.7586,4001.5,4000.9,1.74956]
[1733584277361,0.14570914,4001.4,4001.0,1.74955]